Cogmind - Beta 16 @@@ ROGUE MODE // 2025.11.11 @ 21:25:33 Player: dp-fld Result: Destroyed by EW-N0C(j) with Overtuned Pulse Rifle Performance ------------- Evolutions (2) 1000 Regions Visited (8) 1600 Robots Destroyed (114) 570 Value Destroyed (3541) 3541 Prototype IDs (35) 700 Alien Tech Used (0) 0 Bonus (836) 836 TOTAL SCORE: 8247 Bonus ------- High Alert Combat Kills 11 Follower Combat Kills 25 Registered with UFD 300 Met Optimus in HQ 500 Cogmind --------- Core Integrity 0/550 Matter 300/300 Energy 100/100 System Corruption 0% Temperature Cool (9) Movement Core (200) Ox3 Location -8/Scraptown Parts ------- > --- POWER (1) -------- (None) > --- PROPULSION (4) --- (None) > --- UTILITY (4) ------ Makeshift Microdissipator Network Small Storage Unit Advanced Visual Processing Unit Hacking Suite > --- WEAPON (2) ------- Companion Sword > --- INVENTORY (8) ---- Light Nuclear Core Improved VTOL Module Improved VTOL Module Improved VTOL Module Improved Sensor Array Advanced Terrain Scanner Advanced Beam Rifle Mini Grenade Launcher Peak State ------------ > --- POWER ------------ Light Nuclear Core > --- PROPULSION ------- Improved Cesium-ion Thruster Improved Cesium-ion Thruster Improved Cesium-ion Thruster Improved Cesium-ion Thruster > --- UTILITY ---------- Advanced Heat Sink High-capacity Storage Unit Advanced Visual Processing Unit Hardened Light Armor Plating > --- WEAPON ----------- Advanced Beam Cannon Companion Sword > --- INVENTORY -------- Heavy Ion Engine Subdweller Power Source Armored Treads Armored Treads Armored Treads Advanced Treads Improved VTOL Module Improved VTOL Module Improved VTOL Module Small Storage Unit Hacking Suite Bomb Drone Bay Advanced Beam Rifle Advanced Beam Cannon Subdweller Machine Gun Improved Assault Rifle Improved Assault Rifle Grenade Launcher Scythe [Rating: 49] Favorites ----------- Power Heavy Ion Engine Engine Heavy Ion Engine Power Core Light Nuclear Core Propulsion Armored Treads Treads Armored Treads Leg Aluminum Leg Flight Unit Improved Cesium-ion Thruster Utility High-capacity Storage Unit Device Heat Sink Storage High-capacity Storage Unit Processor Advanced Visual Processing Unit Hackware Hacking Suite Protection Hardened Light Armor Plating Weapon Advanced Beam Cannon Energy Gun Beam Rifle Energy Cannon Advanced Beam Cannon Ballistic Gun Heavy Battle Rifle Impact Weapon Hammer Slashing Weapon Companion Sword Special Melee Weapon Datajack Build | -11 -10 -10 -10 -9 -8 -8 -8 -8 ------- Run | Yrd Mat Min Exi Min Mat Sto Rec Scr Slots Evolved 4 | . . . . . 4 . . . Power . | . . . . . . . . . Propulsion 2 | . . . . . 2 . . . Utility 2 | . . . . . 2 . . . Weapon . | . . . . . . . . . Parts Attached 78 | 1 17 5 1 2 35 4 1 12 Power 11 | . 4 1 . 1 3 1 . 1 Engine 10 | . 4 1 . 1 3 1 . . Core 1 | . . . . . . . . 1 Reactor . | . . . . . . . . . Propulsion 28 | . 6 3 . . 15 1 . 3 Treads 20 | . 3 3 . . 13 1 . . Leg 3 | . 3 . . . . . . . Wheel . | . . . . . . . . . Hover . | . . . . . . . . . Flight 5 | . . . . . 2 . . 3 Utility 22 | . 3 1 . . 12 . 1 5 Device 9 | . 2 . . . 5 . . 2 Storage 5 | . 1 1 . . 2 . . 1 Processor 2 | . . . . . 2 . . . Hackware 1 | . . . . . . . . 1 Protection 5 | . . . . . 3 . 1 1 Artifact . | . . . . . . . . . Weapon 17 | 1 4 . 1 1 5 2 . 3 Energy Gun 5 | 1 1 . . 1 1 . . 1 Energy Cannon 5 | . 3 . . . . 2 . . Ballistic Gun 4 | . . . . . 3 . . 1 Ballistic Cannon . | . . . . . . . . . Launcher . | . . . . . . . . . Special Weapon . | . . . . . . . . . Impact Weapon 1 | . . . . . 1 . . . Slashing Weapon 1 | . . . . . . . . 1 Piercing Weapon . | . . . . . . . . . Special Melee Weapon 1 | . . . 1 . . . . . Unidentified Prototypes 5 | . 1 . . . 3 . . 1 Parts Lost 14 | . . . . 1 5 . . 8 Power 3 | . . . . . 1 . . 2 Propulsion 6 | . . . . . 2 . . 4 Utility 2 | . . . . . 1 . . 1 Weapon 3 | . . . . 1 1 . . 1 Highest Loss Streak 6 | . . . . 1 2 . . 6 To Critical Strikes . | . . . . . . . . . Average Backups 16 | 6 9 13 17 17 17 17 18 16 Power 2 | 1 . 1 4 4 3 1 2 1 Propulsion 6 | 4 4 5 6 5 5 7 7 6 Utility 2 | . 1 2 2 2 2 2 3 2 Weapon 5 | 1 2 3 4 4 6 6 6 5 Tool/Special . | . . . . . . . . . Unused Backups 48 | . 16 2 . . 11 5 . 14 Power 12 | . 2 . . . 6 2 . 2 Propulsion 12 | . 9 . . . . 1 . 2 Utility 11 | . 3 2 . . 1 . . 5 Weapon 13 | . 2 . . . 4 2 . 5 Tool/Special . | . . . . . . . . . Average Slot Usage (%) 99 | . 98 100 100 99 97 99 100 99 Engine 10 | . 14 14 14 14 8 9 9 7 Treads 31 | . 18 28 28 28 35 36 36 33 Device 11 | . 12 14 14 14 14 9 9 8 Storage 10 | . 14 14 14 14 9 9 9 9 Processor 5 | . . . . . 6 9 9 9 Protection 4 | . . . . . 4 9 9 8 Energy Gun 2 | . 2 . . 13 3 . . . Energy Cannon 16 | . 23 28 15 14 7 16 18 15 Ballistic Gun 1 | . 2 . . . 6 1 . . Peak Build Rating 49 | 6 13 14 16 16 46 39 39 49 Average Rating 27 | 6 11 13 14 15 29 38 38 39 On Entrance 20 | 6 6 13 14 16 16 39 39 38 Avg Prop Armor Cover (%) . | . . . . . . . . . Naked Turns . | . . . . . . . . . Heaviest Build 64 | 11 34 54 54 55 64 62 62 62 Greatest Support 82 | 20 40 40 40 40 80 82 82 82 Greatest Overweight (x) 1 | . 1 1 1 1 1 . . . Average Overweight (x) . | . . . 1 1 . . . . Largest Inventory Capacity 20 | 8 15 20 20 20 20 20 20 20 Average Capacity 18 | 8 11 18 20 20 20 20 20 18 Most Carried 20 | 6 15 17 20 20 20 20 20 20 Average Carried 18 | 6 10 15 19 19 19 19 20 18 Final Capacity 20 | 8 15 20 20 20 20 20 20 8 Final Carried 20 | 6 15 17 20 20 20 20 20 8 Class Distribution -------------------- 67% | Mutant 30% | Scavenger-Mutant Dominant Class ---------------- Mutant | -10/Materials Scavenger-Mutant | -10/Mines Scavenger-Mutant | -10/Exiles Mutant | -9/Mines Mutant | -8/Materials Mutant | -8/Storage Mutant | -8/Recycling Mutant | -8/Scraptown Resources | -11 -10 -10 -10 -9 -8 -8 -8 -8 ----------- Run | Yrd Mat Min Exi Min Mat Sto Rec Scr Matter Collected 1486 | 200 244 70 10 35 639 48 10 230 Remotely . | . . . . . . . . . Salvage Created 5145 | . 875 294 . 196 1519 1608 367 286 Parts 239 | . 48 19 . 13 79 52 11 17 Haulers Intercepted 11 | . 2 . . . 4 5 . . Recyclers Shooed 5 | . 1 . . . 1 . 3 . Parts Field Recycled . | . . . . . . . . . Retrieved Matter . | . . . . . . . . . Parts Self-Destructed . | . . . . . . . . . Prevented . | . . . . . . . . . Parts Restored . | . . . . . . . . . Kills | -11 -10 -10 -10 -9 -8 -8 -8 -8 ------- Run | Yrd Mat Min Exi Min Mat Sto Rec Scr Combat Hostiles Destroyed 88 | . 18 8 . 5 26 24 2 5 Melee 2 | . . . . . . . . 2 Guns 25 | . 5 . . . 17 1 . 2 Cannons 57 | . 13 7 . 5 9 20 2 1 Classes Destroyed 15 | . 6 1 . 2 2 1 . 3 Worker 2 | . 1 1 . . . . . . Builder 1 | . . . . . 1 . . . Tunneler 1 | . . . . 1 . . . . Hauler 11 | . 2 . . . 4 5 . . Recycler 9 | . 1 . . 1 3 1 3 . Operator 1 | . . . . . . 1 . . Watcher 1 | . 1 . . . . . . . Swarmer 14 | . 2 3 . 3 6 . . . Grunt 51 | . 16 3 . 1 14 17 . . Brawler 1 | . . . . 1 . . . . Duelist 1 | . . . . . 1 . . . Sentry 16 | . . 2 . . 5 7 2 . Federalist 1 | . . . . . . . . 1 Scrapper 3 | . . . . . . . . 3 Mutant 1 | . . . . . . . . 1 Best Kill Streak 7 | . 6 3 . 3 4 7 3 4 Combat Bots Only 5 | . 5 3 . 3 4 3 1 4 Max Kills in Single Turn 2 | . 1 1 . 1 2 1 1 1 Gunslinging 1 | . . . . . 1 . . . Exploded . | . . . . . . . . . Melee 1 | . . . . . . . . 1 Uniques/NPCs Destroyed . | . . . . . . . . . Combat | -11 -10 -10 -10 -9 -8 -8 -8 -8 -------- Run | Yrd Mat Min Exi Min Mat Sto Rec Scr Hostile Shots Fired 421 | . 61 21 . 15 155 80 12 77 Missed 105 | . 10 5 . 3 35 32 4 16 Hits 316 | . 51 16 . 12 120 48 8 61 Melee 3 | . . . . . . . . 3 Projectile 313 | . 51 16 . 12 120 48 8 58 Critical Strikes 18 | . . 1 . . 3 4 1 9 Damage Taken 4740 | . 595 175 . 101 1722 752 116 1279 Core 663 | . 92 . . 8 161 124 . 278 Absorbed by Shields . | . . . . . . . . . Regen/Repaired (Parts) 330 | . . . . . 228 102 . . Core Remaining (%) 80 | 100 . . . 60 . . . . Volleys Fired 305 | . 55 13 . 17 103 89 14 14 Largest 2 | . 2 2 . 2 2 2 2 2 Hottest 136 | . 136 136 . 136 124 136 136 129 Shots Fired 574 | . 104 26 . 28 192 177 28 19 Gun 171 | . 43 . . 8 110 3 . 7 Cannon 403 | . 61 26 . 20 82 174 28 12 Launcher . | . . . . . . . . . Special . | . . . . . . . . . Kinetic 90 | . 24 . . . 63 3 . . Thermal 484 | . 80 26 . 28 129 174 28 19 Explosive . | . . . . . . . . . Electromagnetic . | . . . . . . . . . Robot Hit Streak 21 | . 12 5 . 10 21 11 16 17 Robot Miss Streak 5 | . 4 2 . 3 3 3 1 5 Penetration Max . | . . . . . . . . . Secondary Targets 1 | . . . . . 1 . . . Max Gunslinging Chain 1 | . . . . . 1 . . . Shots Hit Robots 398 | . 65 15 4 17 139 119 24 15 Core Hits 164 | . 30 9 . 8 58 46 5 8 Critical Kills 4 | . . 1 . . . 3 . . Critical Parts Destroyed 1 | . . . . . 1 . . . Critical Strikes 10 | . . 1 . 2 3 3 . 1 Burn 5 | . . . . 2 2 . . 1 Meltdown 4 | . . 1 . . . 3 . . Destroy 1 | . . . . . 1 . . . Melee Attacks 16 | . . . 4 . 2 . . 10 Impact 2 | . . . . . 2 . . . Slashing 10 | . . . . . . . . 10 Piercing . | . . . . . . . . . Sneak Attacks 4 | . . . 4 . . . . . Combat Hostiles . | . . . . . . . . . Follow-up Attacks . | . . . . . . . . . Damage Inflicted 7836 | . 1030 334 . 318 2659 2587 520 388 Guns 1883 | . 311 . . 114 1357 41 . 60 Cannons 5597 | . 719 309 . 204 1255 2498 488 124 Explosions . | . . . . . . . . . Melee 204 | . . . . . . . . 204 Ramming 152 | . . 25 . . 47 48 32 . Kinetic 1041 | . 163 . . . 837 41 . . Thermal 6439 | . 867 309 . 318 1775 2498 488 184 Explosive . | . . . . . . . . . Electromagnetic . | . . . . . . . . . Impact . | . . . . . . . . . Slashing 204 | . . . . . . . . 204 Piercing . | . . . . . . . . . Highest Corruption . | . . . . . . . . . Average Corruption . | . . . . . . . . . Corruption Purged . | . . . . . . . . . Corruption Blocked . | . . . . . . . . . Overload Shots . | . . . . . . . . . Overflow Damage 31 | . . . . . . 21 10 . Projectiles 20 | . . . . . . 10 10 . Explosions . | . . . . . . . . . Melee 11 | . . . . . . 11 . . Knockbacks . | . . . . . . . . . Impact . | . . . . . . . . . Kinetic . | . . . . . . . . . Secondary . | . . . . . . . . . Self-Inflicted Damage . | . . . . . . . . . Shots . | . . . . . . . . . Rammed 13 | . . 2 . 1 4 4 2 . Targets Rammed 15 | . . 3 . 1 5 4 2 . Kicked . | . . . . . . . . . Crushed 2 | . . 1 . . 1 . . . Highest Temperature 383 | . 320 225 . 198 180 198 141 383 Average Temperature 76 | . 98 97 . 85 52 54 55 119 Received Heat Transfer 2365 | . 312 66 . 6 873 468 54 586 Effects 2 | . . . . . . . . 2 Energy Bleed 1 | . . . . . . . . 1 Matter Decay 1 | . . . . . . . . 1 Siege Activations . | . . . . . . . . . Martial Activations . | . . . . . . . . . Shielding Activations . | . . . . . . . . . Robots Disrupted . | . . . . . . . . . Combat Hostiles . | . . . . . . . . . Robots Corrupted 1 | . . . . . . 1 . . Combat Hostiles . | . . . . . . . . . Parts Fried 3 | . 1 . . . . 2 . . Impact Corruptions 1 | . . . . . . 1 . . Robots Melted 4 | . . 1 . . . 3 . . Combat Hostiles 4 | . . 1 . . . 3 . . Parts Melted 39 | . 2 3 . 4 10 11 4 5 Heat Transferred 12582 | . 1739 555 . 814 3737 4514 888 335 Parts Sabotaged . | . . . . . . . . . Parts Stolen . | . . . . . . . . . Parts Stripped . | . . . . . . . . . Power Chain Reactions . | . . . . . . . . . Alert | -11 -10 -10 -10 -9 -8 -8 -8 -8 ------- Run | Yrd Mat Min Exi Min Mat Sto Rec Scr Maximum Alert Level 2 | . . . . . 1 2 . . Low Security (%) 92 | 100 100 100 . 100 98 60 100 . Level 1 5 | . . . . . 1 32 . . Level 2 1 | . . . . . . 6 . . Level 3 . | . . . . . . . . . Level 4 . | . . . . . . . . . Level 5 . | . . . . . . . . . High Security . | . . . . . . . . . Max Security . | . . . . . . . . . Peak Influence 416 | . 140 125 . 50 203 416 197 . Initial 151 | . . 42 . . . 57 151 . Average 71 | . 80 20 . 5 68 154 109 . Influence Increases 2731 | . 560 222 . 136 777 779 257 . Destroy 0b10 Robot/C 1680 | . 360 180 . 100 520 480 40 . Destroy 0b10 Robot/NC 130 | . 25 5 . 10 40 35 15 . Destroy Leader 354 | . 76 20 . 20 108 130 . . Allied During Kill 2 | . . 2 . . . . . . Successful Hack 125 | . 35 . . 6 39 23 22 . Select Force Hacks 300 | . 60 . . . . 60 180 . Disable Machine 90 | . . 15 . . 30 45 . . Destroy Structure 20 | . 4 . . . 10 6 . . Partial Spotted 15 | . . . . . 15 . . . Lose Combat Pursuer 15 | . . . . . 15 . . . Influence Decreases 2731 | . 452 330 . 136 641 525 625 22 Entered New Map 406 | . . 66 . . . 79 239 22 Time Decay 2145 | . 452 244 . 126 491 446 386 . Lost Part 60 | . . . . 10 50 . . . Lost Ally 120 | . . 20 . . 100 . . . Squads Dispatched 19 | . 5 1 . . 4 9 . . Investigation 8 | . 4 . . . 2 2 . . Extermination . | . . . . . . . . . Reinforcement 6 | . 1 . . . 2 3 . . Assault 1 | . . 1 . . . . . . Garrison 4 | . . . . . . 4 . . Intercept . | . . . . . . . . . Searches Triggered . | . . . . . . . . . Construction Impeded . | . . . . . . . . . Haulers Reinforced . | . . . . . . . . . Active Scanning Responses . | . . . . . . . . . Cargo Convoy Interrupts . | . . . . . . . . . Stealth | -11 -10 -10 -10 -9 -8 -8 -8 -8 --------- Run | Yrd Mat Min Exi Min Mat Sto Rec Scr Distress Signals 8 | . 4 . . . 2 2 . . Communications Jammed . | . . . . . . . . . Distress Signals . | . . . . . . . . . Times Spotted 147 | . 23 11 . 5 36 48 2 22 Peak Tracking Total 10 | . 5 4 . 3 4 3 1 10 Tactical Retreats 2 | . . . . . 1 . . 1 Traps | -11 -10 -10 -10 -9 -8 -8 -8 -8 ------- Run | Yrd Mat Min Exi Min Mat Sto Rec Scr Traps Triggered 4 | . 3 . . . . 1 . . Indirectly . | . . . . . . . . . Trap Hack Attempts . | . . . . . . . . . Triggered . | . . . . . . . . . Disarmed . | . . . . . . . . . Reprogrammed . | . . . . . . . . . Reused . | . . . . . . . . . Traps Extracted . | . . . . . . . . . Installed . | . . . . . . . . . Triggered . | . . . . . . . . . Machines | -11 -10 -10 -10 -9 -8 -8 -8 -8 ---------- Run | Yrd Mat Min Exi Min Mat Sto Rec Scr Machines Disabled 8 | . . 1 . . 2 3 . 2 Max in Single Turn 1 | . . . . . 1 1 . 1 Garrison Access 2 | . . . . . 1 1 . . Machines Repaired . | . . . . . . . . . Machines Dismantled . | . . . . . . . . . Machines Sabotaged . | . . . . . . . . . Overloaded Fab Kills . | . . . . . . . . . Hacking | -11 -10 -10 -10 -9 -8 -8 -8 -8 --------- Run | Yrd Mat Min Exi Min Mat Sto Rec Scr Machines Accessed 55 | . 9 1 1 1 12 12 13 6 Terminals 30 | . 7 . . 1 8 8 6 . Fabricators . | . . . . . . . . . Repair Stations 2 | . . . . . 1 1 . . Recycling Units 10 | . 2 . . . . 2 6 . Scanalyzers 2 | . . . . . 2 . . . Garrison Access 2 | . . . . . 1 1 . . Total Hacks 155 | . 23 1 1 3 43 20 30 34 Successful 95 | . 8 1 1 1 24 11 15 34 Failed 59 | . 15 . . 2 18 9 15 . Catastrophic 13 | . 5 . . . 2 3 3 . Database Lockouts 1 | . . . . . 1 . . . Manual 57 | . 9 . . 3 17 9 19 . Terminals 82 | . 20 . . 3 28 14 17 . Fabricators . | . . . . . . . . . Repair Stations 9 | . . . . . 7 2 . . Recycling Units 14 | . 3 . . . . 3 8 . Scanalyzers 5 | . . . . . 5 . . . Garrison Access 4 | . . . . . 3 1 . . Terminal Hacks 70 | . 6 1 1 1 12 6 9 34 Record 40 | . . . 1 . 1 . 5 33 Part Schematic 2 | . . . . . . 1 1 . Robot Analysis 1 | . . . . . . . 1 . Prototype ID Bank 12 | . 3 . . 1 6 1 1 . Open Door 5 | . . 1 . . . 3 . 1 Branch Access Points 1 | . . . . . 1 . . . Emergency Access Points 1 | . . . . . . . 1 . Recycling Unit Index 1 | . 1 . . . . . . . Alert Level 1 | . 1 . . . . . . . Locate Traps 1 | . . . . . 1 . . . Dispatch Records 1 | . . . . . 1 . . . Hauler Manifests 4 | . 1 . . . 2 1 . . Fabricator Hacks . | . . . . . . . . . Repair Station Hacks 8 | . . . . . 6 2 . . Scan Component 4 | . . . . . 3 1 . . Repair 4 | . . . . . 3 1 . . Recycling Unit Hacks . | . . . . . . . . . Scanalyzer 4 | . . . . . 4 . . . Insert Component 2 | . . . . . 2 . . . Retrieve Study 2 | . . . . . 2 . . . Garrison Access Hacks 2 | . . . . . 1 1 . . Seal Access 2 | . . . . . 1 1 . . Unauthorized Hacks 11 | . 2 . . . 1 2 6 . Terminals 1 | . . . . . 1 . . . Botnet 1 | . . . . . 1 . . . Fabricators . | . . . . . . . . . Repair Stations . | . . . . . . . . . Recycling Units 10 | . 2 . . . . 2 6 . Tunnel 10 | . 2 . . . . 2 6 . Scanalyzers . | . . . . . . . . . Garrison Access . | . . . . . . . . . Data Cores Recovered . | . . . . . . . . . Used . | . . . . . . . . . Hacking Detections 33 | . 7 . . 1 11 7 7 . Full Trace Events 9 | . 1 . . . 2 . 6 . Feedback Events . | . . . . . . . . . Feedback Blocked . | . . . . . . . . . Robot Schematics Acquired . | . . . . . . . . . Robots Built . | . . . . . . . . . Authchips . | . . . . . . . . . Time . | . . . . . . . . . Total Robot Build Rating . | . . . . . . . . . Part Schematics Acquired 2 | . . . . . . 1 1 . Parts Built . | . . . . . . . . . Authchips . | . . . . . . . . . Time . | . . . . . . . . . Total Part Build Rating . | . . . . . . . . . Part Studies Acquired 2 | . . . . . 2 . . . Parts Repaired 4 | . . . . . 3 1 . . Time 154 | . . . . . 103 51 . . Parts Recycled . | . . . . . . . . . Recycled Matter . | . . . . . . . . . Retrieved Matter . | . . . . . . . . . Retrieved Components . | . . . . . . . . . Parts Scanalyzed . | . . . . . . . . . Part Schematics Acquired . | . . . . . . . . . Parts Damaged . | . . . . . . . . . Bothacking | -11 -10 -10 -10 -9 -8 -8 -8 -8 ------------ Run | Yrd Mat Min Exi Min Mat Sto Rec Scr Used RIF Installer . | . . . . . . . . . Robots Hacked 4 | . . . 4 . . . . . Non-combat 3 | . . . 3 . . . . . Combat 1 | . . . 1 . . . . . Robot Hacks Applied 4 | . . . 4 . . . . . parse_system 4 | . . . 4 . . . . . Relay Couplers Released . | . . . . . . . . . Fabnet Peak Effective % . | . . . . . . . . . Robots Rewired . | . . . . . . . . . Allies Hacked . | . . . . . . . . . Hacks Repelled . | . . . . . . . . . Allies | -11 -10 -10 -10 -9 -8 -8 -8 -8 -------- Run | Yrd Mat Min Exi Min Mat Sto Rec Scr Total Allies 1 | . . 1 . . . . . . Largest Group 1 | . . 1 . . . . . . Highest-Rated Group 31 | . . 31 . . . . . . Highest-Rated Ally 31 | . . 31 . . . . . . Total Orders 7 | . . . . . 7 . . . EXPLORE 7 | . . . . . 7 . . . Ally Attacks 16 | . . 8 . . 8 . . . Total Damage 105 | . . 105 . . . . . . Kills 1 | . . 1 . . . . . . Allies Corrupted . | . . . . . . . . . Allies Melted 9 | . . . . . . . . 9 Intel | -11 -10 -10 -10 -9 -8 -8 -8 -8 ------- Run | Yrd Mat Min Exi Min Mat Sto Rec Scr Active Infowar (turns) 6735 | . . . . . 1465 1434 918 2918 Optics 6735 | . . . . . 1465 1434 918 2918 Sensors 167 | . . . . . . . . 167 Robot Analysis Total 1 | . . . . . . . 1 . Derelict Logs Recovered 6 | . . 3 . 1 . . . 2 Drone Launches 8 | . . . . . 8 . . . Drone Recoveries . | . . . . . . . . . Exploration | -11 -10 -10 -10 -9 -8 -8 -8 -8 ------------- Run | Yrd Mat Min Exi Min Mat Sto Rec Scr Turns Passed 12066 | 7 1138 1547 725 1231 2148 1434 918 2918 Spaces Moved 6415 | 5 596 685 298 475 946 628 534 2248 Core . | . . . . . . . . . Treads 5559 | . 387 685 298 475 946 628 534 1606 Legs 214 | 5 209 . . . . . . . Wheels . | . . . . . . . . . Hover . | . . . . . . . . . Flight 642 | . . . . . . . . 642 Fastest Speed 26 | 120 120 160 240 240 160 163 163 26 Average Speed 163 | 120 146 217 240 240 162 166 163 123 Slowest Speed 250 | 120 240 240 240 240 250 170 163 170 Overloaded Moves . | . . . . . . . . . Propulsion Burnouts . | . . . . . . . . . Robots Hopped . | . . . . . . . . . Potential Cave-ins . | . . . . . . . . . Cave-ins Triggered . | . . . . . . . . . Exploration Rate (%) 80 | 2 97 96 64 91 87 97 97 94 Regions Visited 8 Branch Regions 6 Pre-discovered Areas 14 | . 2 2 1 . . 3 6 . Known Exits Taken 1 | . . . . . 1 . . . Unknown Exits Taken 7 | 1 1 1 1 1 . 1 1 . Scrap Searched 14 | . . 1 . 1 . . . 12 Spaces Dug 3 | . . . . 2 1 . . . Terrain Destroyed 6 | . . . . 2 3 1 . . Melee 1 | . . . . . 1 . . . Projectile 5 | . . . . 2 2 1 . . AOE . | . . . . . . . . . Terrain Rammed . | . . . . . . . . . Walls Destroyed . | . . . . . . . . . Machines Disabled . | . . . . . . . . . Actions | -11 -10 -10 -10 -9 -8 -8 -8 -8 --------- Run | Yrd Mat Min Exi Min Mat Sto Rec Scr Total 7472 | 5 773 719 306 539 1374 846 553 2357 Wait 395 | . 47 3 . 36 195 93 2 19 Move 6407 | 4 595 684 297 474 945 627 533 2248 Hop . | . . . . . . . . . Pick Up 87 | . 23 4 3 4 30 12 . 11 Fast Attach 32 | . 10 . . . 11 2 . 9 Attach 14 | . . . . 1 11 1 . 1 Detach 7 | . . . . . 3 1 . 3 Swap 64 | 1 13 5 2 2 26 2 1 12 Drop 130 | . 30 7 . 4 43 15 1 30 Fire 305 | . 55 13 . 17 103 89 14 14 Melee 16 | . . . 4 . 2 . . 10 Ram . | . . . . . . . . . Kick . | . . . . . . . . . Crush 15 | . . 3 . 1 5 4 2 . Escape Stasis . | . . . . . . . . . Rewire . | . . . . . . . . . Trap . | . . . . . . . . . Miscellaneous . | . . . . . . . . . Route ------- -11/Scrapyard -10/Materials (discovered 4 exits: [*Mat x3] / *Min) -10/Mines (discovered 3 exits: [*Mat x2] / *Exi) -10/Exiles -9/Mines (discovered 2 exits: *Mat x2) -8/Materials (discovered 4 exits: *Fac x3 / *Sto) -8/Storage (discovered 2 exits: *Fac / *Rec) -8/Recycling (discovered 2 exits: [*Fac] / *Scr) -8/Scraptown (discovered 2 exits: [*Fac x2]) History --------- Turn | Location | Event 1 | -11/Scrapyard | Discovered new exit (range 3) 8 | -11/Scrapyard | Entered Materials 311 | -10/Materials | Discovered new exit (range 15) 508 | -10/Materials | Derelicts attacked the area 523 | -10/Materials | Discovered new exit (range 9) 676 | -10/Materials | Build established: Mutant 715 | -10/Materials | Discovered new exit (range 16) 886 | -10/Materials | Discovered new exit (range 11) 1146 | -10/Materials | Entered Mines 1155 | -10/Mines | Found the Drone Emporium 1170 | -10/Mines | Found Prototype Device 1220 | -10/Mines | Learned location of Zion (-7) 1400 | -10/Mines | Deemed a non-threat by the Exiles lab entrance 1400 | -10/Mines | Discovered new exit (range 5) 1463 | -10/Mines | Build established: Scavenger-Mutant 1487 | -10/Mines | Learned Materials garrison access intel 1518 | -10/Mines | Discovered new exit (range 14) 1592 | -10/Mines | Discovered new exit (range 10) 1747 | -10/Mines | Met a Derelict testing a Signal Generator 2073 | -10/Mines | A weapon hastily lodged in a ceiling crevice suddenly fell to the ground 2693 | -10/Mines | Entered Exiles 2756 | -10/Exiles | Met 8R-AWN 2798 | -10/Exiles | Met EX-HEX 2869 | -10/Exiles | Met EX-BIN 2945 | -10/Exiles | Met EX-DEC 3086 | -10/Exiles | Discovered new exit (range 12) 3418 | -10/Exiles | Entered Mines 3455 | -9/Mines | Learned 2 Materials zone layouts 3555 | -9/Mines | Assembled infested the area 3582 | -9/Mines | YI-UF0 nonchalantly dropped a Grenade Launcher on the ground 3747 | -9/Mines | Found a Scrap Suit stashed away for nefarious purposes 4280 | -9/Mines | Build established: Mutant 4624 | -9/Mines | Discovered new exit (range 7) 4636 | -9/Mines | Discovered new exit (range 16) 4649 | -9/Mines | Entered Materials 4649 | -8/Materials | Evolved 4 slots: Propulsion x2, Utility x2 4650 | -8/Materials | Identified exit to Factory 4651 | -8/Materials | Loaded intel: 1 garrison access location 4746 | -8/Materials | Repaired Adv. Beam Cannon 4816 | -8/Materials | Repaired Lgt. Armor Plating 4844 | -8/Materials | Repaired Hammer 4971 | -8/Materials | Build established: Scavenger-Mutant 5582 | -8/Materials | Build established: Mutant 5786 | -8/Materials | Identified Bomb Drone Bay 6052 | -8/Materials | Identified exit to Storage 6082 | -8/Materials | Central database locked down 6396 | -8/Materials | Discovered exit to Factory (range 31) 6727 | -8/Materials | Discovered exit to Factory (range 20) 6797 | -8/Materials | Entered Storage 6815 | -8/Storage | Learned location of Armory (-4) 6920 | -8/Storage | Repaired Adv. Beam Cannon 6956 | -8/Storage | Allied Derelicts emerged from ambush trap array 7462 | -8/Storage | Garrison activated, responded to threat 7763 | -8/Storage | Discovered exit to Factory (range 20) 7977 | -8/Storage | Garrison activated, responded to threat 8037 | -8/Storage | Core integrity fell below 50% 8226 | -8/Storage | Used back door to open Recycling access 8226 | -8/Storage | Discovered new exit (range 4) 8231 | -8/Storage | Entered Recycling 8398 | -8/Recycling | Discovered new exit (range 10) 9112 | -8/Recycling | Scanned before Scraplab entrance 9134 | -8/Recycling | Entered Scraplab 9147 | -8/Recycling | Discovered new exit (range 2) 9149 | -8/Recycling | Entered Scraptown 9265 | -8/Scraptown | Heard Great Nut preacher, LISTEN AND RECITE! 9361 | -8/Scraptown | Visited Comm Corps 9410 | -8/Scraptown | Visited IN-MT5's Study 9456 | -8/Scraptown | Visited Bundlers 9585 | -8/Scraptown | Scanned Subdweller tech in exchange for log data 9588 | -8/Scraptown | Learned Research emergency access door positions 9589 | -8/Scraptown | Learned Factory garrison access intel 9857 | -8/Scraptown | Discovered new exit (range 11) 9912 | -8/Scraptown | Visited TADAMA 9977 | -8/Scraptown | Visited Assassins FH 10007 | -8/Scraptown | Visited Fellowship of the Rings 10067 | -8/Scraptown | Visited UFD Registry 10067 | -8/Scraptown | Registered with UFD as "Beamcutter" 10129 | -8/Scraptown | Visited Chapter 10 10158 | -8/Scraptown | Visited Abandonware Association 10175 | -8/Scraptown | Learned abandonware demo "ERRANTS.EXE" 10175 | -8/Scraptown | Learned abandonware demo "KABOOM.EXE" 10224 | -8/Scraptown | Visited Botcube Research 10271 | -8/Scraptown | Visited Scrap Suit Storage 10302 | -8/Scraptown | Visited DA-N13 Charitable Foundation 10318 | -8/Scraptown | Found DCF Scrap (31 items) 10581 | -8/Scraptown | Visited Sword Containment 10610 | -8/Scraptown | Visited Derelict Rescue Squad 10651 | -8/Scraptown | Visited Curators Association 11363 | -8/Scraptown | Visited LU-1G1's Boring Crew 11471 | -8/Scraptown | Found Prototype Slashing Weapon 11472 | -8/Scraptown | Identified Companion Sword 11658 | -8/Scraptown | Discovered new exit (range 3) 11885 | -8/Scraptown | Met Optimus 11885 | -8/Scraptown | Accepted into 0bPrime 11903 | -8/Scraptown | Civil war broke out across Scraptown 11998 | -8/Scraptown | Lost 6 allies 12032 | -8/Scraptown | Core integrity fell below 20% 12067 | -8/Scraptown | Destroyed by EW-N0C(j) with Overtuned Pulse Rifle Last Messages --------------- 12039_ Critical hit (Burn: +37). 12040_ JH-QVX(g) destroyed. 12040_ Arm. Treads destroyed. 12041_ QV-UUG(j) heat damages Ovr. Titanium Leg. 12041_ WZ-06K(j) destroyed. 12043_ Lgt. Deuterium Engine melted. 12043_ Mak. Salvage Targeting Computer melted. 12043_ ED-MAG(j) destroyed. 12044_ QV-UUG(j) cannibalizes Scrap Suit to repair Mak. Microdissipator Network. 12044_ QV-UUG(j) destroyed. 12045_ Arm. Treads destroyed. 12052_ P4-K2Z(j) destroyed. 12057_ Critical hit (Impale). 12059_ Hvy. Ion Engine destroyed. 12061_ Adv. Treads destroyed. 12062_ Critical hit (Burn: +37). 12065_ Arm. Treads destroyed. 12066_ Adv. Beam Cannon destroyed. 12066_ Critical hit (Burn: +37). Map ----- +----------------------------------------------------+ | ??????"""##"""##""|##"""#??## ##????# < #???????? | | ?????#"" ##"" ##""|##!!"#### ###### ##??????? | | ?????#"" #??????? | | ?????# #??????? | | ?????####################### % ###########??????? | | ???????????????????????????## ##????????????????? | | ????????????????????????????#%%#?????????????????? | | ????????????????????????????# #??#######????????? | | ??????###########???????????# #??" !"#????????? | | ?????#"""""""""#???????????# #??#" "#????????? | | "#????# " " " #???????????# ####X ##????????? | | "#????# #???????????# #" "#????????? | | "#????# "# #" #?###"####### #"! !"#????????? | | "#????# "#X#" #?"" """"# %" !"#????????? | | "#????# "###" ##"" """# #"! !"#????????? | | "#????# """"" ## " &"" = #"! !"#????????? | | "#????# ##" """#!%x# ##????????? | | #????# ##" #%!# #????????? | | ##????##### ########### #####[!##*#######????????? | | ###########E########### #####jg##!############???? | | """""""""" [""" " """[""""!%*%=% ##" "#???? | | !%[ =%* *%[ [=/[%!"##" """ "#???? | | !!! !=! !=j[=![##" "#???? | | [= *! ##"! "#???? | | jgj% !] ##% " """#???? | | @x *[= !"= j #???? | | """""""""""" """""""""""""j "##" """ ""#???? | | """""""""""""""""""""""""""%g % ##" "????? | | ""###### ################"= "##" """"????? | | ""# ##????????#""!= #########?????? | | ""# X"#????????#""%!!= "## ! #?????? | | ""# "" "" ##????????#""[=!![ ## % #?????? | | ""# "" "" X"#??????###""%%*![*##=! * #?????? | | ""# " " ######### # "*=!%!=;;==!!###?????? | | "" "" !!%!!%*=*![[[###?????? | | "" "" [%=![ ##==|[|*#?????? | | ""# " " ######### #""![* ##=!]%!*#?????? | | ""# "" "" ""#??????###"" !% "##=!]*= #?????? | | ""# "" "" ##????????#" !!% "#########?????? | | ""# X"#????????#" == "#############?? | | ""# ##????????#"" ## #?? | | ""###### ################" !=[## #### #####?? | | """""""""""""""""""""""""""*= ==%"## # #?? | | """"""""""""""""""""""""""""%![!! # """ #?? | | *!!"## # "#" #?? | | "## # """ #?? | | "## # #?? | | ## #### #####?? | | # #?? | | " """"""""""" """"""""""" """""" #############?? | +----------------------------------------------------+ Best States ------------- Heat Dissipation 63 Energy Generation 15 Energy Capacity 280 Matter Stores 300 Matter Capacity 300 Sight Range 20 Robot Scan Range 15 Terrain Scan Density 10 Base Temperature (-) 100 Armor Coverage 150 Resistance: TH 10 Evasion (%) 64 Recoil Reduction 4 Offensive Hacking 10 Item Schematics ----------------- Imp. Hacking Suite | -8/Storage | Hacked Mic. Nuclear Core | -8/Recycling | Hacked Robot Schematics ------------------ None Fabricated ------------ Nothing Repaired ---------- Adv. Beam Cannon | 23% | -8/Materials Lgt. Armor Plating | 36% | -8/Materials Hammer | 29% | -8/Materials Adv. Beam Cannon | 21% | -8/Storage Studied --------- Lgt. Treads | -8/Materials | Hacked Lgt. Nuclear Core | -8/Materials | Hacked Alien Tech Used ----------------- None Achievements -------------- None Challenges ------------ None Game ------ Seed ThermicDimensionalLog Manual? 0 Play Time 01:51:50 Cumulative 550.9 hours Start 2025.11.11 @ 19:31:56 End 2025.11.11 @ 21:25:33 Sessions 1 Manual Loads 0 Difficulty Rogue Special Mode None Game No. 162 Rogue 123 Adventurer 0 Explorer 39 Win Type - Total 15 Types 12/1/1/1/0/0/0/0/0/0 Lore% 75 Gallery% 73 Achievement% 50 Wizard Run 0 Options --------- Layout 2 ASCII 1 Keyboard 1 Movement Arrows Keybinds 0 Fullscreen 1 Font 24/Smallcaps Map View 50x44 Zoom Use 0% Tactical HUD 1 Map Filters NONE Filters NONE Steam 1 RUN: 7e1c6ab9-85d1-481a-bca0-75fc963b311b